bitfinex-derivatives/quotes_ETHF0:USTF0_20241026
["timestamp","ask_amount","ask_price","bid_price","bid_amount"]
[1729925173507,1.31044154,2477.3,2477.2,3.2078]
[1729925173716,1.73764154,2477.3,2477.2,3.2078]
[1729925174220,0.4272,2477.3,2477.2,3.2078]
[1729925174412,0.8545,2477.5,2477.2,4.51824154]
[1729925174717,0.8545,2477.5,2477.4,1.31044154]
[1729925177712,0.4272,2477.7,2477.4,1.31044154]
[1729925177713,0.4343,2477.8,2477.6,0.40407]
[1729925177914,0.4343,2477.8,2477.7,1.75114154]
[1729925183222,1.31044154,2477.9,2477.7,1.75114154]
[1729925183428,0.8407,2478.0,2477.8,1.31044154]
[1729925183636,2.15114154,2478.0,2477.8,1.31044154]
[1729925186334,0.4148,2478.1,2477.9,1.31044154]
[1729925186629,0.4148,2478.1,2478.0,1.71445154]
[1729925186825,0.4148,2478.1,2478.0,2.13645154]
[1729925187025,0.8618,2478.1,2478.0,2.13645154]
[1729925187627,0.8618,2478.1,2478.0,1.73244154]
[1729925187826,0.8618,2478.1,2478.0,2.13645154]
[1729925190330,0.4148,2478.1,2478.0,2.13645154]
[1729925190522,0.4491,2478.3,2478.0,2.13645154]
[1729925190728,0.4491,2478.3,2478.2,1.31044154]
[1729925190729,0.8747,2478.3,2478.2,1.31044154]
[1729925191530,2.18514154,2478.3,2478.1,1.31044154]
[1729925192035,0.8747,2478.3,2478.2,1.31044154]
[1729925193431,0.8747,2478.3,2478.0,0.422]
[1729925193432,2.18514154,2478.3,2478.0,0.422]
[1729925193636,2.18514154,2478.3,2478.1,1.31044154]
[1729925198427,1.31044154,2478.2,2478.0,3.2078]
[1729925198631,1.71443154,2478.2,2478.0,3.2078]
[1729925198941,1.74504154,2478.1,2478.0,3.2078]
[1729925200042,1.74504154,2478.1,2477.5,1.2673]
[1729925200043,1.74504154,2478.1,2477.8,1.31044154]
[1729925200840,1.74504154,2478.1,2477.9,1.31044154]
[1729925201942,1.74504154,2478.1,2478.0,1.31044154]
[1729925203638,1.74504154,2478.1,2477.9,1.31044154]
[1729925206941,1.31044154,2478.0,2477.5,4.90063814]
[1729925207139,2.19604154,2477.9,2477.7,1.31044154]
[1729925207538,1.75714154,2477.8,2477.1,3.2078]
[1729925207840,1.31044154,2477.3,2477.1,3.2078]
[1729925208040,2.64274154,2477.2,2477.1,4.51824154]
[1729925208238,1.3323,2477.2,2477.1,4.51824154]
[1729925208439,2.64274154,2477.2,2476.8,3.2078]
[1729925208642,2.64274154,2477.2,2477.0,1.31044154]
[1729925209043,2.64274154,2477.2,2476.9,1.31044154]
[1729925209044,1.31044154,2477.1,2476.9,1.31044154]
[1729925209343,1.31044154,2477.1,2476.8,3.2078]
[1729925209540,1.31044154,2477.1,2476.9,1.31044154]
[1729925212745,1.31044154,2477.0,2476.9,1.31044154]
[1729925213444,1.31044154,2477.0,2476.8,3.2078]
[1729925213653,1.31044154,2476.9,2476.8,3.2078]
[1729925213947,1.31044154,2476.9,2476.8,4.51824154]
[1729925214843,1.31044154,2476.9,2476.8,3.2078]
[1729925215040,1.31044154,2476.9,2476.7,1.31044154]
[1729925215236,1.74584154,2476.8,2476.7,1.31044154]
[1729925220044,1.74584154,2476.8,2476.5,3.2078]
[1729925220243,1.31044154,2476.6,2476.4,1.31044154]
[1729925220439,1.31044154,2476.6,2476.5,1.31044154]
[1729925220644,1.31044154,2476.6,2476.3,1.31044154]
[1729925220847,1.31044154,2476.6,2476.2,3.2078]
[1729925220848,1.31044154,2476.4,2476.2,4.51824154]
[1729925221047,1.31044154,2476.3,2476.2,4.51824154]
[1729925221354,1.72654154,2476.3,2476.2,4.51824154]
[1729925221558,0.4161,2476.3,2476.2,4.51824154]
[1729925222849,1.72654154,2476.3,2476.2,4.51824154]
[1729925224354,1.72654154,2476.3,2476.2,3.2078]
[1729925225345,1.72654154,2476.3,2476.2,4.51824154]
[1729925226653,1.72654154,2476.3,2476.2,3.2078]
[1729925227448,1.72654154,2476.3,2476.1,1.31044154]
[1729925228049,1.72654154,2476.3,2476.1,4.51824154]
[1729925228447,1.72654154,2476.3,2476.1,3.2078]
[1729925228653,1.72654154,2476.3,2476.1,4.51824154]
[1729925230058,1.72654154,2476.3,2476.1,1.31044154]
[1729925230247,2.15154154,2476.3,2476.2,1.31044154]
[1729925236860,2.15154154,2476.3,2476.1,4.51824154]
[1729925237060,1.31044154,2476.2,2476.1,4.51824154]
[1729925239762,1.31044154,2476.2,2476.1,1.31044154]
[1729925239953,1.31044154,2476.2,2476.1,4.51824154]
[1729925240752,1.31044154,2476.2,2476.1,1.31044154]
[1729925244162,0.40421,2476.8,2476.1,8.55664154]
[1729925244367,1.31044154,2476.7,2476.6,1.31044154]
[1729925244564,1.31044154,2476.7,2476.4,1.31044154]
[1729925244767,1.73164154,2476.6,2476.5,0.4297]
[1729925245460,0.40423,2476.7,2476.5,0.4297]
[1729925245461,2.1505,2476.9,2476.5,0.83394]
[1729925245660,1.31044154,2476.7,2476.5,0.4297]
[1729925246573,1.31044154,2476.7,2476.5,0.83395]
[1729925247256,1.31044154,2476.7,2476.5,0.4297]
[1729925248468,1.31044154,2476.6,2476.5,0.4297]
[1729925258378,0.4386,2476.9,2476.8,0.40421]
[1729925258565,4.62177079,2477.2,2476.9,0.40418]
[1729925258566,2.18104154,2477.2,2476.9,0.40418]
[1729925258771,2.18104154,2477.2,2477.1,1.31044154]
[1729925258772,1.3062,2477.2,2477.1,1.31044154]
[1729925258965,1.31044154,2477.4,2477.2,0.40413]
[1729925259266,1.31044154,2477.4,2477.3,0.40412]
[1729925259466,1.31044154,2477.4,2477.2,1.71457154]
[1729925259776,1.31044154,2477.3,2477.2,1.31044154]
[1729925261877,0.8848,2477.5,2477.2,8.55504154]
[1729925262073,0.8848,2477.5,2477.3,1.71455154]
[1729925262271,0.8848,2477.5,2477.3,2.15925154]
[1729925263171,2.19524154,2477.5,2477.3,1.75514154]
[1729925263673,2.19524154,2477.5,2477.3,2.15926154]
[1729925263983,2.19524154,2477.5,2477.3,1.75514154]
[1729925264677,1.31044154,2477.4,2477.3,0.4447]
[1729925266188,1.31044154,2477.4,2477.2,4.51824154]
[1729925266376,1.31044154,2477.3,2477.2,3.2078]
[1729925267777,1.71456154,2477.3,2476.9,1.31044154]
[1729925267984,1.31044154,2477.1,2476.9,1.31044154]
[1729925268176,0.4429,2477.0,2476.9,1.31044154]
[1729925268383,2.16004154,2477.0,2476.9,1.31044154]
[1729925268679,2.16004154,2477.0,2476.8,4.51824154]
[1729925268978,1.31044154,2476.9,2476.7,1.31044154]
[1729925269377,1.31044154,2476.9,2476.6,1.31044154]
[1729925269877,1.31044154,2476.7,2476.5,1.31044154]
[1729925270183,1.31044154,2476.7,2476.6,1.31044154]
[1729925273984,1.31044154,2476.7,2476.5,1.31044154]
[1729925275987,0.8428,2476.6,2476.5,1.31044154]
[1729925276182,2.15324154,2476.6,2476.4,3.2078]
[1729925276384,1.74144154,2476.5,2476.4,3.2078]
[1729925277685,1.74144154,2476.5,2476.3,3.2078]
[1729925277686,0.40427,2476.4,2476.3,3.2078]
[1729925277881,0.40427,2476.4,2476.1,1.31044154]
[1729925277882,1.71471154,2476.4,2476.1,1.31044154]
[1729925278195,1.31044154,2476.2,2476.1,1.31044154]
[1729925278588,1.31044154,2476.2,2476.0,1.31044154]
[1729925278785,1.76054154,2476.1,2476.0,1.31044154]
[1729925279090,0.4501,2476.1,2476.0,1.31044154]
[1729925282585,0.4501,2476.1,2475.9,3.2078]
[1729925282586,1.76054154,2476.1,2475.9,3.2078]
[1729925282791,1.73854154,2476.0,2475.9,3.2078]
[1729925283588,2.14288154,2476.0,2475.9,3.2078]
[1729925283794,1.73854154,2476.0,2475.9,3.2078]
[1729925286191,1.73854154,2476.0,2475.9,4.51824154]
[1729925286892,0.4281,2476.0,2475.9,4.51824154]
[1729925287087,0.4281,2476.0,2475.9,4.93524154]
[1729925288491,0.4281,2476.0,2475.9,5.33959154]
[1729925288995,0.4281,2476.0,2475.9,4.93524154]
[1729925290493,0.4281,2476.0,2475.9,1.72744154]
[1729925294687,1.73081,2476.2,2475.9,2.13179154]
[1729925294688,1.3265,2476.2,2475.9,2.13179154]
[1729925294897,1.74694154,2476.2,2476.0,1.31044154]
[1729925295797,0.4365,2476.2,2476.0,1.31044154]
[1729925295999,0.4365,2476.2,2476.1,0.40432]
[1729925296602,2.19264154,2476.3,2476.1,0.40432]
[1729925296790,2.19264154,2476.3,2476.1,1.71476154]
[1729925296995,0.40427,2476.5,2476.3,0.40428]
[1729925296996,1.31044154,2476.5,2476.3,0.40428]
[1729925297193,1.31044154,2476.5,2476.3,0.40429]
[1729925297393,1.31044154,2476.5,2476.3,0.83559]
[1729925297795,1.31044154,2476.5,2476.3,0.4313]
[1729925297989,1.31044154,2476.4,2476.3,0.4313]
[1729925298598,1.31044154,2476.4,2476.1,4.92255154]
[1729925298898,1.75974154,2476.3,2476.1,4.92255154]
[1729925299598,1.75974154,2476.3,2476.2,3.2078]
[1729925302501,1.75974154,2476.3,2476.1,1.71475154]
[1729925302704,1.75974154,2476.3,2476.2,3.2078]
[1729925306600,0.4493,2476.3,2476.2,4.51824154]
[1729925306808,0.4493,2476.3,2476.2,4.92254154]
[1729925307892,0.4493,2476.3,2476.2,4.51824154]
[1729925309706,0.4493,2476.3,2476.2,1.31044154]
[1729925309904,0.4493,2476.3,2476.2,4.51824154]
[1729925310102,1.75974154,2476.3,2476.2,3.2078]
[1729925312604,1.75974154,2476.3,2476.2,3.6121]
[1729925313111,1.75974154,2476.3,2476.2,0.4043]
[1729925313300,1.75974154,2476.3,2476.2,3.2078]
[1729925316009,1.75974154,2476.3,2476.1,0.40432]
[1729925317615,0.418,2476.2,2476.1,0.40432]
[1729925318006,0.8425,2476.2,2476.1,0.40432]
[1729925319613,0.8425,2476.2,2476.0,2.12697154]
[1729925320119,0.8425,2476.2,2476.1,0.40432]
[1729925321720,0.8425,2476.2,2476.1,3.61212]
[1729925324323,0.8425,2476.2,2476.1,4.92256154]
[1729925325618,0.4493,2476.3,2476.1,4.51824154]
[1729925326019,1.75974154,2476.3,2476.1,3.2078]
[1729925326219,0.4493,2476.3,2476.2,0.4043]
[1729925327523,1.2854,2476.5,2476.4,0.40427]
[1729925327820,2.59584154,2476.5,2476.3,0.448]
[1729925328123,2.59584154,2476.5,2476.4,0.40427]
[1729925328323,2.59584154,2476.5,2476.3,0.448]
[1729925328521,2.59584154,2476.5,2476.3,0.85227]
[1729925328924,2.59584154,2476.5,2476.3,4.06007]
[1729925329125,2.59584154,2476.5,2476.3,3.6558]
[1729925329327,2.59584154,2476.5,2476.4,0.40427]
[1729925330321,2.59584154,2476.5,2476.3,3.2078]
[1729925330620,0.40434,2476.1,2475.7,4.25856707]
[1729925330823,1.31044154,2475.8,2475.7,3.2078]
[1729925331023,1.31044154,2475.8,2475.4,0.40443]
[1729925331220,1.31044154,2475.6,2475.4,1.31044154]
[1729925331416,1.31044154,2475.6,2475.5,0.40442]
[1729925331924,1.31044154,2475.6,2475.4,1.71487154]
[1729925333718,0.4498,2476.0,2475.5,5.34964154]
[1729925333923,1.31044154,2475.8,2475.7,4.51824154]
[1729925337226,0.4498,2476.0,2475.7,4.51824154]
[1729925337227,1.31044154,2475.9,2475.7,4.51824154]
[1729925338523,1.31044154,2475.9,2475.7,1.31044154]
[1729925338725,1.31044154,2475.9,2475.7,4.51824154]
[1729925339734,0.4444,2475.8,2475.7,4.51824154]
[1729925340227,0.4444,2475.8,2475.7,1.31044154]
[1729925340725,0.4444,2475.8,2475.7,4.51824154]
[1729925341126,0.4444,2475.8,2475.7,1.31044154]
[1729925341722,0.4444,2475.8,2475.7,3.2078]
[1729925341723,1.75484154,2475.8,2475.7,3.2078]
[1729925341923,2.17154154,2475.8,2475.7,3.2078]
[1729925343431,2.57591154,2475.8,2475.3,4.51824154]
[1729925343632,1.31044154,2475.5,2475.3,4.92268154]
[1729925344125,1.31044154,2475.5,2475.4,1.31044154]
[1729925347427,1.31044154,2475.5,2475.3,3.2078]
[1729925347633,2.14194154,2475.4,2475.3,3.2078]
[1729925349032,2.14194154,2475.4,2475.3,4.51824154]
[1729925349238,0.8315,2475.4,2475.3,4.51824154]
[1729925349536,1.74054154,2475.6,2475.3,4.92269154]
[1729925349829,1.74054154,2475.6,2475.5,1.31044154]
[1729925350235,1.74054154,2475.6,2475.4,2.13527154]
[1729925350534,1.74054154,2475.6,2475.5,1.31044154]
[1729925352326,1.74054154,2475.6,2475.4,1.73084154]
[1729925352532,1.31044154,2475.5,2475.4,1.73084154]
[1729925353337,1.31044154,2475.5,2475.4,4.93864154]
[1729925353842,1.31044154,2475.5,2475.4,3.2078]
[1729925357839,1.31044154,2475.5,2475.2,2.16304154]
[1729925358143,0.8396,2475.4,2475.2,2.16304154]
[1729925358341,1.31044154,2475.3,2475.1,3.6248]
[1729925359748,1.31044154,2475.3,2475.1,0.417]
[1729925360042,1.31044154,2475.3,2475.1,3.6248]
[1729925362640,0.4434,2475.2,2475.1,3.6248]
[1729925362846,1.75384154,2475.2,2475.1,3.6248]
[1729925365241,1.75384154,2475.2,2475.1,4.93524154]
[1729925368046,0.4434,2475.2,2475.1,4.93524154]
[1729925371751,0.4434,2475.2,2475.1,5.33972154]
[1729925372149,0.4434,2475.2,2475.1,4.93524154]
[1729925372953,0.4434,2475.2,2475.1,5.33972154]
[1729925373649,0.4434,2475.2,2475.1,2.13192154]
[1729925373849,0.4434,2475.2,2475.1,4.93524154]
[1729925374553,0.4434,2475.2,2475.1,5.33972154]
[1729925375052,0.4434,2475.2,2475.1,4.93524154]
[1729925375557,0.4434,2475.2,2475.1,5.33972154]
[1729925376058,0.4434,2475.2,2475.1,2.13192154]
[1729925376354,0.4434,2475.2,2475.1,1.85390853]
[1729925376553,0.4434,2475.2,2475.1,5.06170853]
[1729925376857,0.4434,2475.2,2475.1,4.93524154]
[1729925377052,0.4434,2475.2,2475.1,5.06170963]
[1729925377362,1.75384154,2475.2,2475.1,5.06170963]
[1729925377854,1.75384154,2475.2,2475.1,5.04918963]
[1729925378756,1.31044154,2475.2,2475.1,5.04918963]
[1729925379049,0.4107,2475.4,2475.1,4.64470963]
[1729925379358,0.4107,2475.4,2475.3,1.71489154]
[1729925380151,3.07104154,2475.7,2475.4,0.40443]
[1729925380354,1.31044154,2476.0,2475.7,0.40438]
[1729925380556,2.60834154,2476.0,2475.9,0.40435]
[1729925380852,2.60834154,2476.0,2475.8,0.84346]
[1729925381058,1.31044154,2475.9,2475.8,0.4391]
[1729925383559,1.31044154,2475.9,2475.8,0.84347]
[1729925384855,1.31044154,2475.9,2475.8,0.4391]
[1729925385346,1.31044154,2475.9,2475.8,3.6469]
[1729925388757,1.31044154,2475.9,2475.8,0.4391]
[1729925389153,1.31044154,2475.9,2475.8,3.6469]
[1729925390562,1.31044154,2475.9,2475.8,0.4391]
[1729925390753,1.31044154,2475.9,2475.8,3.6469]
[1729925391554,1.31044154,2475.9,2475.8,4.05127]
[1729925391851,1.31044154,2475.9,2475.8,3.6469]
[1729925392266,1.31044154,2475.9,2475.8,0.4391]
[1729925392563,1.31044154,2475.9,2475.8,3.6469]
[1729925395363,1.31044154,2475.9,2475.8,0.4391]
[1729925395664,1.31044154,2475.9,2475.8,3.6469]
[1729925396664,1.31044154,2475.9,2475.8,0.4391]
[1729925396863,1.31044154,2475.9,2475.8,3.6469]
[1729925398363,1.31044154,2475.9,2475.8,0.4391]
[1729925398760,1.31044154,2475.9,2475.8,3.6469]
[1729925399164,1.31044154,2475.9,2475.8,0.4391]
[1729925399365,1.31044154,2475.9,2475.8,3.6469]
[1729925400268,1.31044154,2475.9,2475.8,0.4391]
[1729925400469,1.31044154,2475.9,2475.8,3.6469]
[1729925402769,2.60834154,2476.0,2475.8,5.36171154]
[1729925402969,12.17024418,2476.7,2475.9,1.31044154]
[1729925403174,1.3182,2476.4,2476.3,1.31044154]
[1729925403673,2.62864154,2476.4,2476.3,1.31044154]
[1729925404769,2.62864154,2476.4,2476.2,1.73044154]
[1729925404964,1.31044154,2476.3,2476.2,1.73044154]
[1729925406861,1.31044154,2476.3,2476.1,3.2078]
[1729925407179,1.31044154,2476.2,2476.1,3.2078]
[1729925408670,1.71474154,2476.2,2476.1,3.2078]
[1729925408865,1.71474154,2476.2,2475.9,1.31044154]
[1729925409068,1.31044154,2476.0,2475.9,1.31044154]
[1729925409270,1.31044154,2476.0,2475.9,4.51824154]
[1729925410967,1.31044154,2476.0,2475.9,1.31044154]
[1729925411367,1.31044154,2476.0,2475.9,3.2078]
[1729925411571,1.31044154,2476.0,2475.9,4.51824154]
[1729925414382,1.31044154,2476.0,2475.7,1.73744154]
[1729925414572,2.58314154,2475.9,2475.7,1.73744154]
[1729925414875,2.58314154,2475.9,2475.7,2.14182154]
[1729925415071,2.58314154,2475.9,2475.6,3.2078]
[1729925415264,2.58314154,2475.9,2475.7,1.31044154]
[1729925416073,1.31044154,2475.8,2475.7,1.31044154]
[1729925416370,1.31044154,2475.8,2475.6,3.2078]
[1729925416371,1.31044154,2475.8,2475.6,4.92264154]
[1729925417376,1.31044154,2475.8,2475.6,4.51824154]
[1729925417872,1.2727,2475.9,2475.7,1.31044154]
[1729925418070,1.2727,2475.9,2475.8,1.31044154]
[1729925421177,1.2727,2475.9,2475.7,1.71734154]
[1729925421376,2.58314154,2475.9,2475.6,4.51824154]
[1729925421678,2.58314154,2475.9,2475.6,4.92263154]
[1729925423679,2.58314154,2475.9,2475.6,4.51824154]
[1729925425569,2.58314154,2475.9,2475.6,4.92264154]
[1729925429078,1.31044154,2475.8,2475.6,4.51824154]
[1729925430582,1.31044154,2475.8,2475.6,4.94124154]
[1729925433788,1.31044154,2475.8,2475.6,5.34564154]
[1729925434885,1.31044154,2475.8,2475.6,4.94124154]
[1729925435290,1.31044154,2475.8,2475.6,5.34564154]
[1729925437196,2.58314154,2475.9,2475.7,1.71482154]
[1729925437588,1.2727,2475.9,2475.8,1.31044154]
[1729925441591,1.2727,2475.9,2475.8,1.71481154]
[1729925442396,1.2727,2475.9,2475.8,1.31044154]
[1729925443597,2.58314154,2475.9,2475.7,4.92261154]
[1729925444596,2.58314154,2475.9,2475.7,4.51824154]
[1729925444800,2.58314154,2475.9,2475.7,3.2078]
[1729925447104,2.58314154,2475.9,2475.7,4.92263154]
[1729925448202,2.58314154,2475.9,2475.7,4.51824154]
[1729925449396,2.58314154,2475.9,2475.7,4.92263154]
[1729925449902,2.58314154,2475.9,2475.7,1.71483154]
[1729925450090,0.8494,2475.9,2475.7,1.71483154]
[1729925450295,1.31044154,2476.0,2475.7,1.71483154]
[1729925451594,1.31044154,2476.0,2475.7,1.31044154]
[1729925451799,1.31044154,2476.0,2475.8,0.40437]
[1729925451994,1.31044154,2476.0,2475.7,1.31044154]
[1729925451995,1.31044154,2476.0,2475.7,1.71481154]
[1729925452192,1.31044154,2476.0,2475.7,1.31044154]
[1729925452399,1.2793,2476.1,2476.0,0.40434]
[1729925452798,1.2793,2476.1,2476.0,0.84394]
[1729925454003,0.8625,2476.1,2476.0,5.36218154]
[1729925455402,0.8625,2476.1,2476.0,2.15438154]
[1729925455711,2.17294154,2476.1,2476.0,4.05174]
[1729925456009,2.17294154,2476.1,2476.0,3.6474]
[1729925456709,2.17294154,2476.1,2476.0,4.05174]
[1729925458208,2.17294154,2476.1,2476.0,0.84394]
[1729925458508,2.17294154,2476.1,2476.0,4.05174]
[1729925458703,2.17294154,2476.1,2476.0,3.6474]
[1729925458906,7.52178308,2476.1,2475.7,3.2078]
[1729925459202,1.31044154,2475.8,2475.6,2.76560861]
[1729925459407,0.4139,2475.7,2475.6,2.36120861]
[1729925459607,1.2803,2475.7,2475.6,2.36120861]
[1729925460209,1.2803,2475.7,2475.6,2.76560861]
[1729925461612,1.31044154,2475.9,2475.6,2.36120861]
[1729925461912,2.59104154,2476.0,2475.8,1.31044154]
[1729925462610,2.59104154,2476.0,2475.8,1.71481154]
[1729925463309,1.2806,2476.0,2475.8,1.71481154]
[1729925463709,1.2806,2476.0,2475.9,1.31044154]
[1729925463911,1.31044154,2476.1,2475.9,1.71478154]
[1729925464114,1.31044154,2476.2,2476.0,1.31044154]
[1729925464313,1.31044154,2476.2,2476.0,1.73404154]
[1729925466311,1.31044154,2476.2,2476.0,2.13838154]
[1729925466499,1.31044154,2476.2,2476.0,1.73404154]
[1729925466904,1.31044154,2476.2,2476.0,2.13837154]
[1729925467306,2.62714154,2476.3,2476.1,1.71475154]
[1729925467502,1.3167,2476.3,2476.2,1.71474154]
[1729925470708,2.62714154,2476.3,2476.2,1.31044154]
[1729925470908,2.62714154,2476.3,2476.1,4.92255154]
[1729925471209,2.62714154,2476.3,2476.1,4.51824154]
[1729925471915,1.31044154,2476.2,2476.1,4.51824154]
[1729925476516,1.31044154,2476.2,2476.1,4.92256154]
[1729925477022,2.62714154,2476.3,2476.1,4.51824154]
[1729925481427,1.31044154,2476.2,2476.1,3.2078]
[1729925481626,1.31044154,2476.2,2476.0,1.31044154]
[1729925483730,1.31044154,2476.2,2476.0,1.71478154]
[1729925484835,1.31044154,2476.2,2476.0,1.31044154]
[1729925486137,5.34884154,2476.1,2475.9,0.40434]
[1729925486335,0.40435,2475.9,2475.3,0.40444]
[1729925486524,1.31044154,2476.0,2475.3,0.40444]
[1729925486525,1.31044154,2475.6,2475.4,1.31044154]
[1729925486726,1.31044154,2475.7,2475.5,1.71486154]
[1729925486929,2.59704154,2475.8,2475.6,1.31044154]
[1729925487135,2.59704154,2475.8,2475.7,1.31044154]
[1729925488135,1.2866,2475.8,2475.7,1.31044154]
[1729925488644,1.2866,2475.8,2475.7,1.71483154]
[1729925489135,2.19744154,2476.1,2475.7,1.71483154]
[1729925489338,1.2818,2476.0,2475.9,0.40435]
[1729925489538,3.69041819,2476.3,2476.0,0.40432]
[1729925489539,0.434,2476.2,2476.0,0.40432]
[1729925489840,0.434,2476.2,2476.1,1.31044154]
[1729925493534,0.4406,2476.3,2476.1,1.31044154]
[1729925493843,0.4406,2476.3,2476.2,1.31044154]
[1729925496131,0.4399,2476.4,2476.2,1.31044154]
[1729925496333,0.4399,2476.4,2476.3,1.31044154]
[1729925496534,0.4399,2476.4,2476.3,2.13183154]
[1729925496935,0.4399,2476.4,2476.3,1.72754154]
[1729925497141,0.4399,2476.4,2476.3,2.13183154]
[1729925497536,0.4399,2476.4,2476.3,1.72754154]
[1729925497737,0.4399,2476.4,2476.3,2.13183154]
[1729925497944,0.4399,2476.4,2476.3,1.72754154]
[1729925498339,0.4399,2476.4,2476.3,2.13183154]
[1729925498537,0.4475,2476.5,2476.3,1.72754154]
[1729925498739,3.2078,2476.8,2476.4,5.34884154]
[1729925498938,2.60724154,2477.0,2476.7,1.31044154]
[1729925499142,2.60724154,2477.0,2476.9,1.31044154]
[1729925499740,1.2968,2477.0,2476.9,1.31044154]
[1729925499937,0.4307,2477.2,2476.9,1.31044154]
[1729925500140,2.60814154,2477.2,2477.1,1.31044154]
[1729925500342,2.60814154,2477.2,2477.0,1.31044154]
[1729925501343,1.31044154,2477.1,2477.0,1.31044154]
[1729925502347,1.31044154,2477.1,2476.9,1.31044154]
[1729925502645,1.2977,2477.2,2476.9,1.31044154]
[1729925502646,1.31044154,2477.0,2476.9,1.31044154]
[1729925502850,1.31044154,2477.0,2476.7,3.2078]
[1729925503052,0.4079,2476.9,2476.8,1.31044154]
[1729925504350,0.4079,2476.9,2476.7,4.51824154]
[1729925504544,0.4502,2476.8,2476.7,4.51824154]
[1729925506649,1.76064154,2476.8,2476.6,1.31044154]
[1729925506845,0.4388,2476.7,2476.6,1.31044154]
[1729925507240,1.74924154,2476.7,2476.6,1.31044154]
[1729925507953,0.4388,2476.7,2476.6,1.31044154]
[1729925515957,0.4388,2476.7,2476.5,2.15659154]
[1729925516254,0.4388,2476.7,2476.5,1.75234154]
[1729925516450,0.4467,2476.6,2476.5,1.75234154]
[1729925516651,0.4467,2476.6,2476.5,2.15660154]
[1729925517364,0.4467,2476.6,2476.5,1.75234154]
[1729925519658,0.4467,2476.6,2476.5,2.15660154]
[1729925520560,0.4467,2476.6,2476.5,1.75234154]
[1729925520759,1.75714154,2476.6,2476.4,4.51824154]
[1729925521156,1.75714154,2476.6,2476.4,4.92250154]
[1729925521364,1.75714154,2476.6,2476.4,4.51824154]
[1729925521672,1.75714154,2476.6,2476.5,0.40426]
[1729925521863,1.75714154,2476.6,2476.4,4.51824154]
[1729925522563,1.75714154,2476.6,2476.4,4.92250154]
[1729925526063,1.75714154,2476.6,2476.4,4.51824154]
[1729925527367,1.75714154,2476.6,2476.4,4.92251154]
[1729925529974,0.4467,2476.6,2476.5,1.31044154]
[1729925540274,0.4467,2476.6,2476.4,4.51824154]
[1729925540577,1.75714154,2476.6,2476.3,2.15583154]
[1729925541271,1.75714154,2476.6,2476.3,1.31044154]
[1729925541478,1.75714154,2476.6,2476.3,1.71473154]
[1729925541681,1.75714154,2476.6,2476.3,1.31044154]
[1729925541985,1.31044154,2476.4,2476.1,3.6507]
[1729925542176,2.15584154,2476.3,2476.1,4.96114154]
[1729925542482,2.57634154,2476.3,2476.1,4.96114154]
[1729925543282,1.2659,2476.3,2476.2,1.31044154]
[1729925548076,2.57634154,2476.3,2476.1,3.2078]
[1729925548282,1.31044154,2476.2,2476.1,3.2078]
[1729925552483,1.31044154,2476.2,2476.0,1.31044154]
[1729925553581,5.75317154,2476.1,2475.8,3.2078]
[1729925553785,1.31044154,2475.9,2475.8,4.51824154]
[1729925554385,1.31044154,2475.9,2475.8,1.31044154]
[1729925554591,2.17314154,2475.9,2475.8,1.31044154]
[1729925559088,2.17314154,2475.9,2475.7,1.31044154]
[1729925559486,2.17314154,2475.9,2475.6,0.4441]
[1729925559692,2.17314154,2475.9,2475.7,1.31044154]
[1729925560083,1.31044154,2475.8,2475.7,1.31044154]
[1729925561496,1.31044154,2475.8,2475.5,16.05827496]
[1729925561497,1.31044154,2475.8,2475.5,17.3687165]
[1729925561695,1.73714154,2475.7,2475.5,17.3687165]
[1729925562798,1.73714154,2475.7,2475.5,16.05827496]
[1729925562988,1.31044154,2475.6,2475.5,3.2078]
[1729925563686,5.34964154,2475.6,2475.4,1.31044154]
[1729925563897,2.19654154,2475.5,2475.4,1.31044154]
[1729925571688,0.4267,2475.7,2475.4,1.31044154]
[1729925571896,2.62214154,2475.7,2475.6,1.31044154]
[1729925572291,1.73714154,2475.7,2475.6,2.15654154]
[1729925572592,1.31044154,2475.7,2475.6,2.15654154]
[1729925572898,1.31044154,2475.7,2475.6,1.75214154]
[1729925574000,1.31044154,2475.7,2475.6,0.4417]
[1729925580394,1.31044154,2475.7,2475.4,1.74154154]
[1729925580596,1.31044154,2475.5,2475.3,3.61224]
[1729925580905,1.31044154,2475.4,2475.3,3.2078]
[1729925581298,1.31044154,2475.4,2475.3,4.51824154]
[1729925582400,1.31044154,2475.4,2475.3,3.2078]
[1729925586400,1.31044154,2475.4,2475.2,1.71844154]
[1729925587695,1.31044154,2475.3,2475.2,1.71844154]
[1729925588800,1.31044154,2475.3,2475.2,0.408]
[1729925590012,1.31044154,2475.3,2475.1,4.51824154]
[1729925590309,1.73704154,2475.2,2475.1,3.2078]
[1729925595012,1.73704154,2475.2,2475.1,4.51824154]
[1729925598106,1.73704154,2475.2,2475.1,3.2078]
[1729925605927,5.77704154,2475.2,2474.6,1.71500154]
[1729925606222,1.31044154,2474.7,2474.6,2.15031154]
[1729925606422,1.31044154,2474.7,2474.6,5.78654154]
[1729925606922,1.31044154,2474.7,2474.6,6.19111154]
[1729925608023,1.31044154,2474.7,2474.6,5.78654154]
[1729925608818,1.31044154,2474.7,2474.6,6.19111154]
[1729925609625,1.31044154,2474.7,2474.6,2.15031154]
[1729925610121,1.31044154,2474.8,2474.6,2.15031154]
[1729925612419,1.31044154,2474.8,2474.7,3.2078]
[1729925613019,1.31044154,2474.8,2474.6,2.15031154]
[1729925613215,1.31044154,2474.7,2474.6,2.15031154]
[1729925613429,1.31044154,2474.7,2474.6,5.35811154]
[1729925613617,0.85,2475.1,2474.6,8.99434154]
[1729925613829,1.31044154,2474.8,2474.7,1.71499154]
[1729925615426,1.31044154,2474.8,2474.7,1.31044154]
[1729925616225,1.31044154,2474.8,2474.6,5.35810154]
[1729925616724,1.31044154,2474.8,2474.6,2.15030154]
[1729925617120,1.31044154,2474.8,2474.7,3.2078]
[1729925617728,1.31044154,2474.8,2474.6,2.15030154]
[1729925618025,1.31044154,2474.8,2474.7,3.2078]
[1729925618931,1.31044154,2474.8,2474.6,2.15030154]
[1729925619425,1.31044154,2474.8,2474.7,3.2078]
[1729925620227,1.31044154,2474.8,2474.6,2.15030154]
[1729925620926,1.31044154,2474.8,2474.7,3.2078]
[1729925621429,1.31044154,2474.8,2474.6,2.15030154]
[1729925621826,0.85,2475.1,2474.7,8.55904154]
[1729925622030,0.4266,2475.2,2475.0,4.92274154]
[1729925622325,1.73704154,2475.2,2475.1,0.4506]
[1729925623023,1.73704154,2475.2,2475.0,3.2078]
[1729925623223,1.73174154,2475.1,2475.0,3.2078]
[1729925624925,1.73174154,2475.1,2474.9,0.40451]
[1729925625124,1.73174154,2475.1,2475.0,3.2078]